fUSD/lending_fUSD_20250106
["ID","MTS","AMOUNT","RATE_DAILY","PERIOD"]
[347856232,1736161839799,-500.0,0.00010545,2]
[347856233,1736161839809,-500.0,0.00010545,2]
[347856234,1736161839818,-500.0,0.00010545,2]
[347856235,1736161839827,-211.46117744,0.00010545,2]
[347856236,1736161839837,-500.0,0.00010545,2]
[347856237,1736161839847,-500.0,0.00010545,2]
[347856238,1736161839857,-500.96982309,0.00010545,2]
[347856239,1736161839866,-500.65681682,0.00010545,2]
[347856240,1736161839876,-500.0,0.00010545,2]
[347856241,1736161839885,-500.0,0.00010545,2]
[347856242,1736161839895,-500.0,0.00010545,2]
[347856243,1736161839905,-500.0,0.00010545,2]
[347856244,1736161839914,-500.0,0.00010545,2]
[347856245,1736161839923,-505.19189071,0.00010545,2]
[347856246,1736161839932,-500.0,0.00010545,2]
[347856247,1736161839942,-267.60524433,0.00010545,2]
[347856248,1736161839951,-500.0,0.00010545,2]
[347856249,1736161839960,-500.0,0.00010545,2]
[347856250,1736161839969,-500.0,0.00010545,2]
[347856251,1736161839978,-501.51236171,0.00010545,2]
[347856252,1736161839987,-500.0,0.00010545,2]
[347856253,1736161839996,-501.29491568,0.00010545,2]
[347856254,1736161840006,-500.0,0.00010545,2]
[347856255,1736161840015,-504.36653137,0.00010545,2]
[347856256,1736161840024,-500.0,0.00010545,2]
[347856257,1736161840033,-500.0,0.00010545,2]
[347856258,1736161840043,-504.70163025,0.00010545,2]
[347856259,1736161840052,-500.0,0.00010545,2]
[347856260,1736161840061,-500.0,0.00010545,2]
[347856261,1736161840070,-504.48375104,0.00010545,2]
[347856263,1736161840080,-543.35052028,0.00010545,2]
[347856265,1736161840090,-500.6201531,0.00010545,2]
[347856267,1736161840103,-500.0,0.00010545,2]
[347856269,1736161840112,-500.78585461,0.00010545,2]
[347856271,1736161840121,-500.0,0.00010545,2]
[347856273,1736161840130,-500.20746564,0.00010545,2]
[347856275,1736161840141,-523.29,0.00010545,2]
[347856277,1736161840151,-501.0373542,0.00010545,2]
[347856279,1736161840160,-500.0,0.00010546,2]
[347856281,1736161840171,-500.0,0.00010546,2]
[347856283,1736161840180,-500.0,0.00010546,2]
[347856285,1736161840189,-500.0,0.00010546,2]
[347856287,1736161840197,-500.0,0.00010546,2]
[347856289,1736161840206,-500.0,0.00010546,2]
[347856291,1736161840215,-500.0,0.00010546,2]
[347856294,1736161840224,-500.0,0.00010546,2]
[347856296,1736161840233,-500.0,0.00010546,2]
[347856298,1736161840243,-500.0,0.00010546,2]
[347856300,1736161840252,-525.87,0.00010546,2]
[347856302,1736161840261,-500.0,0.00010546,2]
[347856303,1736161840270,-500.0,0.00010546,2]
[347856306,1736161840280,-500.0,0.00010546,2]
[347856307,1736161840289,-500.0,0.00010546,2]
[347856310,1736161840299,-500.0,0.00010546,2]
[347856311,1736161840311,-739.33,0.00010546,2]
[347856313,1736161840324,-610.59,0.00010546,2]
[347856315,1736161840333,-500.0,0.00010546,2]
[347856317,1736161840343,-500.0,0.00010546,2]
[347856319,1736161840352,-500.0,0.00010546,2]
[347856321,1736161840361,-500.0,0.00010546,2]
[347856323,1736161840371,-500.0,0.00010546,2]
[347856325,1736161840381,-390.60003354,0.00010546,2]
[347856328,1736161840390,-475.32,0.00010546,2]
[347856330,1736161840399,-500.0,0.00010546,2]
[347856332,1736161840410,-500.0,0.00010546,2]
[347856334,1736161840419,-500.0,0.00010546,2]
[347856335,1736161840428,-500.0,0.00010546,2]
[347856337,1736161840437,-500.0,0.00010546,2]
[347856339,1736161840447,-766.42,0.00010546,2]
[347856341,1736161840456,-500.0,0.00010546,2]
[347856343,1736161840466,-565.59,0.00010546,2]
[347856345,1736161840475,-685.9,0.00010546,2]
[347856347,1736161840484,-769.34,0.00010546,2]
[347856349,1736161840494,-4715.18,0.00010546,2]
[347856351,1736161840503,-500.0,0.00010546,2]
[347856354,1736161840513,-500.0,0.00010546,2]
[347856356,1736161840522,-12.1452522,0.00010546,2]
[347856358,1736161840539,-487.8547478,0.00010546,2]
[347856360,1736161840549,-45.6452522,0.00010546,2]
[347856363,1736161840560,-454.3547478,0.00010546,2]
[347856365,1736161840569,-3587.81361362,0.00010546,2]
[347856368,1736161840592,-549.23638638,0.00010546,2]
[347856370,1736161840601,-500.0,0.00010546,2]
[347856372,1736161840610,-466.95873534,0.00010546,2]
[347856374,1736161840620,-33.04126466,0.00010546,2]
[347856376,1736161840630,-500.0,0.00010546,2]
[347856378,1736161840640,-500.0,0.00010546,2]
[347856380,1736161840650,-500.0,0.00010546,2]
[347856382,1736161840660,-444.03873534,0.00010546,2]
[347856403,1736161840851,-55.96126466,0.00010546,2]
[347856405,1736161840860,-350.52398294,0.00010546,2]
[347856408,1736161840886,-1031.67,0.00010397,2]
[347856410,1736161840895,-122.93601706,0.00010546,2]
[347856413,1736161840906,-500.0,0.00010546,2]
[347856415,1736161840916,-568.43146041,0.00010546,2]
[347856417,1736161840925,-1630.99,0.00010546,2]
[347856419,1736161840934,-354.9,0.00010546,2]
[347856420,1736161840944,-500.0,0.00010546,2]
[347856422,1736161840953,-500.0,0.00010546,2]
[347856424,1736161840963,-3121.66,0.00010546,2]
[347856425,1736161840972,-500.0,0.00010546,2]
[347856426,1736161840981,-274.47,0.00010546,2]
[347856427,1736161840990,-500.0,0.00010546,2]
[347856428,1736161841000,-500.0,0.00010546,2]
[347856429,1736161841009,-532.87845394,0.00010546,2]
[347856430,1736161841019,-662.31,0.00010546,2]
[347856431,1736161841028,-500.0,0.00010546,2]
[347856432,1736161841038,-500.0,0.00010546,2]
[347856433,1736161841048,-562.12,0.00010546,2]
[347856434,1736161841057,-500.0,0.00010546,2]
[347856435,1736161841067,-1739.86,0.00010546,2]
[347856436,1736161841076,-1165.22,0.00010546,2]
[347856437,1736161841085,-1200.65,0.00010546,2]
[347856438,1736161841099,-2125.41,0.00010546,2]
[347856439,1736161841109,-487.52096553,0.00010546,2]
[347856440,1736161841119,-500.0,0.00010546,2]
[347856441,1736161841128,-500.0,0.00010546,2]
[347856442,1736161841138,-1503.13,0.00010546,2]
[347856443,1736161841147,-3289.94,0.00010547,2]
[347856444,1736161841157,-1459.67,0.00010547,2]
[347856445,1736161841167,-1938.25,0.00010547,2]
[347856446,1736161841178,-1205.38,0.00010547,2]
[347856447,1736161841187,-826.28,0.00010547,2]
[347856448,1736161841198,-500.0,0.00010547,2]
[347856449,1736161841207,-1407.37,0.00010547,2]
[347856450,1736161841217,-2556.64,0.00010547,2]
[347856451,1736161841226,-1439.78,0.00010547,2]
[347856452,1736161841236,-945.88,0.00010547,2]
[347856453,1736161841245,-580.77,0.00010547,2]
[347856454,1736161841255,-519.16,0.00010547,2]
[347856455,1736161841264,-900.12,0.00010547,2]
[347856456,1736161841273,-500.0,0.00010547,2]
[347856457,1736161841282,-507.95,0.00010547,2]
[347856458,1736161841292,-500.0,0.00010547,2]
[347856459,1736161841301,-581.0,0.00010547,2]
[347856460,1736161841311,-1691.43,0.00010547,2]
[347856461,1736161841319,-1422.97,0.00010547,2]
[347856462,1736161841327,-2253.76,0.00010547,2]
[347856463,1736161841336,-6508.95,0.00010547,2]
[347856464,1736161841346,-500.0,0.00010547,2]
[347856465,1736161841355,-2882.91,0.00010547,2]
[347856466,1736161841364,-500.0,0.00010547,2]
[347856467,1736161841373,-500.0,0.00010547,2]
[347856468,1736161841383,-500.0,0.00010547,2]
[347856469,1736161841392,-500.0,0.00010547,2]
[347856470,1736161841402,-958.68,0.00010547,2]
[347856471,1736161841411,-1937.0,0.000106,2]
[347856472,1736161841420,-10966.15457403,0.00010635,2]
[347856473,1736161841430,-459.22,0.00010651,2]
[347856474,1736161841440,-1380.46,0.00010671,2]
[347856475,1736161841449,-1519.02,0.00010671,2]
[347856476,1736161841459,-815.05,0.00010671,2]
[347856477,1736161841469,-500.0,0.00010671,2]
[347856478,1736161841479,-1549.87,0.00010671,2]
[347856479,1736161841488,-500.0,0.00010671,2]
[347856480,1736161841498,-500.0,0.00010671,2]
[347856481,1736161841507,-500.0,0.00010671,2]
[347856482,1736161841516,-813.75,0.00010671,2]
[347856483,1736161841525,-500.0,0.00010671,2]
[347856484,1736161841535,-836.23,0.00010671,2]
[347856485,1736161841544,-500.0,0.00010671,2]
[347856486,1736161841553,-1011.0,0.000107,2]
[347856487,1736161841563,-1000.0,0.00010764,2]
[347856488,1736161841572,-420.0,0.00010767,2]
[347856489,1736161841582,-214.7848527,0.0001078,2]
[347856490,1736161841591,-18303.55319856,0.00010784,2]
[347856491,1736161841600,-1471.81,0.00010799,2]
[347856492,1736161841610,-87497.55771758,0.000108,2]
[347856493,1736161841619,-500.0,0.00010817,2]
[347856494,1736161841629,-500.0,0.00010817,2]
[347856495,1736161841638,-500.0,0.00010817,2]
[347856496,1736161841648,-713.87,0.00010817,2]
[347856497,1736161841659,-500.0,0.00010817,2]
[347856498,1736161841668,-3767.89,0.00010817,2]
[347856499,1736161841678,-500.0,0.00010817,2]
[347856500,1736161841687,-500.0,0.00010817,2]
[347856501,1736161841696,-854.93,0.00010817,2]
[347856502,1736161841705,-500.0,0.00010817,2]
[347856503,1736161841714,-500.0,0.00010817,2]
[347856504,1736161841723,-1352.51,0.00010817,2]
[347856505,1736161841733,-1401.72,0.00010817,2]
[347856506,1736161841741,-2076.55,0.00010817,2]
[347856507,1736161841751,-585.17,0.00010817,2]
[347856508,1736161841760,-642.0,0.00010817,2]
[347856509,1736161841769,-500.0,0.00010817,2]
[347856510,1736161841778,-1067.7,0.00010817,2]
[347856511,1736161841787,-525.56,0.00010817,2]
[347856512,1736161841796,-991.38,0.00010817,2]
[347856513,1736161841806,-510.04523799,0.00010817,2]
[347856514,1736161841815,-1331.40705,0.00010817,2]
[347856515,1736161841824,-2499.23,0.00010817,2]
[347856516,1736161841833,-1432.473596,0.00010817,2]
[347856517,1736161841842,-500.0,0.00010817,2]
[347856518,1736161841852,-500.0,0.00010817,2]
[347856519,1736161841861,-500.0,0.00010817,2]
[347856520,1736161841868,-1680.2,0.00010817,2]
[347856521,1736161841878,-2358.11,0.00010817,2]
[347856522,1736161841887,-500.0,0.00010817,2]
[347856523,1736161841896,-500.0,0.00010817,2]
[347856524,1736161841906,-500.0,0.00010818,2]
[347856525,1736161841915,-703.48,0.00010818,2]
[347856526,1736161841925,-500.0,0.00010818,2]
[347856527,1736161841934,-1757.84,0.00010818,2]
[347856528,1736161841943,-1000.0,0.00010818,2]
[347856529,1736161841953,-500.0,0.00010819,2]
[347856530,1736161841962,-500.0,0.00010819,2]
[347856531,1736161841971,-500.0,0.00010819,2]
[347856532,1736161841980,-500.0,0.00010819,2]
[347856533,1736161841989,-562.78,0.00010819,2]
[347856534,1736161841999,-500.0,0.00010819,2]
[347856535,1736161842008,-500.0,0.00010819,2]
[347856536,1736161842017,-500.0,0.00010819,2]
[347856537,1736161842026,-500.0,0.00010819,2]
[347856538,1736161842035,-500.0,0.00010819,2]
[347856539,1736161842044,-500.0,0.00010819,2]
[347856540,1736161842053,-500.0,0.00010819,2]
[347856541,1736161842062,-500.0,0.00010819,2]
[347856542,1736161842071,-500.0,0.00010819,2]
[347856543,1736161842081,-500.0,0.00010819,2]
[347856544,1736161842091,-500.0,0.00010819,2]
[347856545,1736161842101,-500.0,0.00010819,2]
[347856546,1736161842111,-500.0,0.00010819,2]
[347856547,1736161842120,-496.64,0.00010819,2]
[347856548,1736161842129,-500.0,0.00010819,2]
[347856549,1736161842139,-500.0,0.00010819,2]
[347856550,1736161842148,-500.0,0.00010819,2]
[347856551,1736161842159,-500.0,0.00010819,2]
[347856552,1736161842169,-500.0,0.00010819,2]
[347856553,1736161842179,-500.0,0.00010819,2]
[347856554,1736161842188,-500.0,0.00010819,2]
[347856555,1736161842198,-500.0,0.00010819,2]
[347856556,1736161842207,-500.0,0.00010819,2]
[347856557,1736161842216,-500.0,0.00010819,2]
[347856558,1736161842226,-500.0,0.00010819,2]
[347856559,1736161842235,-500.0,0.00010819,2]
[347856560,1736161842244,-500.0,0.00010819,2]
[347856561,1736161842254,-500.0,0.00010819,2]
[347856562,1736161842263,-344.95,0.00010819,2]
[347856563,1736161842272,-500.0,0.00010819,2]
[347856564,1736161842281,-500.0,0.00010819,2]
[347856565,1736161842290,-500.0,0.00010819,2]
[347856566,1736161842299,-579.34219157,0.00010819,2]
[347856567,1736161842308,-500.0,0.00010819,2]
[347856568,1736161842317,-500.0,0.00010819,2]
[347856569,1736161842326,-500.0,0.00010819,2]
[347856570,1736161842335,-500.0,0.00010819,2]
[347856572,1736161842345,-500.0,0.00010819,2]
[347856573,1736161842354,-230.48431064,0.00010819,2]
[347856574,1736161842363,-500.0,0.00010819,2]
[347856575,1736161842372,-500.0,0.00010819,2]
[347856576,1736161842382,-500.0,0.00010819,2]
[347856577,1736161842391,-500.0,0.00010819,2]
[347856579,1736161842400,-500.0,0.00010819,2]
[347856580,1736161842410,-500.0,0.00010819,2]
[347856581,1736161842421,-500.0,0.00010819,2]
[347856582,1736161842430,-500.0,0.00010819,2]
[347856583,1736161842439,-537.5,0.00010819,2]
[347856584,1736161842448,-500.0,0.00010819,2]
[347856585,1736161842457,-500.0,0.00010819,2]
[347856587,1736161842467,-500.0,0.00010819,2]
[347856588,1736161842476,-500.0,0.00010819,2]
[347856590,1736161842485,-500.0,0.00010819,2]
[347856592,1736161842495,-500.0,0.00010819,2]
[347856593,1736161842504,-500.0,0.00010819,2]
[347856595,1736161842513,-500.0,0.00010819,2]
[347856596,1736161842521,-669.01,0.00010819,2]
[347856597,1736161842530,-500.0,0.00010819,2]
[347856598,1736161842540,-500.0,0.00010819,2]
[347856599,1736161842550,-500.0,0.00010819,2]
[347856600,1736161842559,-601.79,0.00010819,2]
[347856601,1736161842568,-500.0,0.00010819,2]
[347856602,1736161842577,-500.0,0.00010819,2]
[347856603,1736161842587,-500.0,0.00010819,2]
[347856604,1736161842596,-500.0,0.00010819,2]
[347856605,1736161842605,-500.0,0.00010819,2]
[347856606,1736161842614,-500.0,0.00010819,2]
[347856607,1736161842624,-500.0,0.00010819,2]
[347856608,1736161842633,-500.0,0.00010819,2]
[347856609,1736161842644,-500.0,0.00010819,2]
[347856610,1736161842654,-500.0,0.00010819,2]
[347856611,1736161842663,-500.0,0.00010819,2]
[347856612,1736161842674,-500.0,0.00010819,2]
[347856613,1736161842683,-500.0,0.00010819,2]
[347856614,1736161842693,-500.0,0.00010819,2]
[347856615,1736161842702,-500.0,0.00010819,2]
[347856616,1736161842712,-500.0,0.00010819,2]
[347856617,1736161842722,-500.0,0.00010819,2]
[347856618,1736161842731,-500.0,0.00010819,2]
[347856619,1736161842740,-500.0,0.00010819,2]
[347856620,1736161842750,-500.0,0.00010819,2]
[347856621,1736161842759,-500.0,0.00010819,2]
[347856622,1736161842769,-500.0,0.00010819,2]
[347856623,1736161842778,-500.0,0.00010819,2]
[347856624,1736161842788,-500.0,0.00010819,2]
[347856625,1736161842797,-500.0,0.00010819,2]
[347856626,1736161842806,-2596.62,0.00010819,2]
[347856627,1736161842816,-500.0,0.00010819,2]
[347856628,1736161842825,-500.0,0.00010819,2]
[347856629,1736161842834,-1485.36,0.00010819,2]
[347856630,1736161842843,-500.0,0.00010819,2]
[347856631,1736161842853,-500.0,0.00010819,2]
[347856633,1736161842862,-500.0,0.00010819,2]
[347856634,1736161842871,-850.14,0.00010819,2]
[347856636,1736161842881,-500.0,0.00010819,2]
[347856639,1736161842890,-500.0,0.00010819,2]
[347856640,1736161842900,-500.0,0.00010819,2]
[347856642,1736161842911,-500.0,0.00010819,2]
[347856644,1736161842921,-500.0,0.00010819,2]
[347856646,1736161842933,-2372.12,0.00010819,2]
[347856647,1736161842944,-500.0,0.00010819,2]
[347856649,1736161842954,-500.0,0.00010819,2]
[347856651,1736161842963,-500.0,0.00010819,2]
[347856653,1736161842973,-500.0,0.00010819,2]
[347856655,1736161842982,-500.0,0.00010819,2]
[347856657,1736161842991,-500.0,0.00010819,2]
[347856659,1736161843001,-500.0,0.00010819,2]
[347856661,1736161843010,-1288.73,0.00010819,2]
[347856662,1736161843019,-500.0,0.00010819,2]
[347856663,1736161843029,-882.62,0.00010819,2]
[347856664,1736161843039,-500.0,0.00010819,2]
[347856665,1736161843048,-500.0,0.00010819,2]
[347856666,1736161843058,-500.0,0.00010819,2]
[347856667,1736161843067,-500.0,0.00010819,2]
[347856668,1736161843077,-500.0,0.00010819,2]
[347856669,1736161843087,-323.52,0.00010819,2]
[347856670,1736161843101,-500.0,0.00010819,2]
[347856671,1736161843111,-1071.52,0.00010819,2]
[347856672,1736161843121,-500.0,0.00010819,2]
[347856673,1736161843131,-504.88,0.00010819,2]
[347856674,1736161843141,-500.0,0.00010819,2]
[347856675,1736161843151,-500.0,0.00010819,2]
[347856676,1736161843161,-500.0,0.00010819,2]
[347856677,1736161843172,-500.0,0.00010819,2]
[347856678,1736161843182,-745.31,0.00010819,2]
[347856679,1736161843192,-500.0,0.00010819,2]
[347856680,1736161843202,-635.31,0.00010819,2]
[347856681,1736161843211,-857.41,0.00010819,2]
[347856682,1736161843222,-500.0,0.00010819,2]
[347856683,1736161843231,-500.0,0.00010819,2]
[347856684,1736161843239,-500.0,0.00010819,2]
[347856685,1736161843248,-500.0,0.00010819,2]
[347856686,1736161843258,-500.0,0.00010819,2]
[347856687,1736161843267,-229.73623971,0.00010819,2]
[347856688,1736161843276,-500.0,0.00010819,2]
[347856689,1736161843286,-500.0,0.00010819,2]
[347856690,1736161843295,-500.0,0.00010819,2]
[347856691,1736161843304,-500.0,0.00010819,2]
[347856692,1736161843313,-500.0,0.00010819,2]
[347856693,1736161843322,-500.0,0.00010819,2]
[347856694,1736161843332,-500.0,0.00010819,2]
[347856695,1736161843341,-500.0,0.00010819,2]
[347856696,1736161843351,-500.0,0.00010819,2]
[347856697,1736161843360,-500.0,0.00010819,2]
[347856698,1736161843369,-500.0,0.00010819,2]
[347856699,1736161843379,-500.0,0.00010819,2]
[347856700,1736161843388,-500.0,0.00010819,2]
[347856701,1736161843397,-500.0,0.00010819,2]
[347856702,1736161843408,-2560.16,0.00010819,2]
[347856703,1736161843417,-500.0,0.00010819,2]
[347856704,1736161843426,-500.0,0.00010819,2]
[347856705,1736161843435,-500.0,0.00010819,2]
[347856706,1736161843444,-500.0,0.00010819,2]
[347856707,1736161843453,-500.0,0.00010819,2]
[347856708,1736161843463,-523.29,0.00010819,2]
[347856709,1736161843471,-1286.53,0.00010819,2]
[347856710,1736161843481,-500.0,0.0001082,2]
[347856711,1736161843489,-500.0,0.0001082,2]
[347856712,1736161843498,-500.0,0.0001082,2]
[347856713,1736161843507,-500.0,0.0001082,2]
[347856714,1736161843518,-500.0,0.0001082,2]
[347856715,1736161843527,-500.0,0.0001082,2]
[347856716,1736161843536,-500.0,0.0001082,2]
[347856717,1736161843545,-500.0,0.0001082,2]
[347856718,1736161843554,-500.0,0.0001082,2]
[347856719,1736161843563,-525.87,0.0001082,2]
[347856720,1736161843572,-500.0,0.0001082,2]
[347856721,1736161843582,-500.0,0.0001082,2]
[347856722,1736161843591,-500.0,0.0001082,2]
[347856723,1736161843600,-190.49291741,0.0001082,2]
[347856724,1736161843609,-500.0,0.0001082,2]
[347856725,1736161843618,-739.33,0.0001082,2]
[347856726,1736161843627,-610.59,0.0001082,2]
[347856727,1736161843636,-500.0,0.0001082,2]
[347856728,1736161843645,-500.0,0.0001082,2]
[347856729,1736161843655,-500.0,0.0001082,2]
[347856730,1736161843664,-500.0,0.0001082,2]
[347856731,1736161843673,-216.34738962,0.0001082,2]
[347856732,1736161843682,-500.0,0.0001082,2]
[347856733,1736161843691,-500.0,0.0001082,2]
[347856734,1736161843700,-500.0,0.0001082,2]
[347856735,1736161843709,-500.0,0.0001082,2]
[347856736,1736161843719,-766.42,0.0001082,2]
[347856737,1736161843727,-565.59,0.0001082,2]
[347856738,1736161843737,-685.9,0.0001082,2]
[347856739,1736161843746,-769.34,0.0001082,2]
[347856740,1736161843755,-4715.18,0.0001082,2]
[347856741,1736161843764,-193.39,0.0001082,2]
[347856742,1736161843773,-500.0,0.0001082,2]
[347856743,1736161843782,-500.0,0.0001082,2]
[347856744,1736161843791,-4137.05,0.0001082,2]
[347856745,1736161843801,-500.0,0.0001082,2]
[347856746,1736161843810,-500.0,0.0001082,2]
[347856747,1736161843819,-500.0,0.0001082,2]
[347856748,1736161843828,-500.0,0.0001082,2]
[347856749,1736161843837,-575.88,0.0001082,2]
[347856750,1736161843847,-439.6,0.0001082,2]
[347856751,1736161843856,-500.0,0.0001082,2]
[347856752,1736161843865,-1630.99,0.0001082,2]
[347856753,1736161843874,-500.0,0.0001082,2]
[347856754,1736161843883,-500.0,0.0001082,2]
[347856755,1736161843892,-3121.66,0.0001082,2]
[347856756,1736161843901,-500.0,0.0001082,2]
[347856757,1736161843911,-500.0,0.0001082,2]
[347856758,1736161843921,-662.31,0.0001082,2]
[347856759,1736161843930,-500.0,0.0001082,2]
[347856760,1736161843939,-562.12,0.0001082,2]
[347856761,1736161843948,-500.0,0.0001082,2]
[347856762,1736161843958,-1739.86,0.0001082,2]
[347856763,1736161843967,-1165.22,0.0001082,2]
[347856764,1736161843976,-1200.65,0.0001082,2]
[347856765,1736161843986,-2125.41,0.0001082,2]
[347856766,1736161843995,-500.0,0.0001082,2]
[347856767,1736161844005,-500.0,0.0001082,2]
[347856768,1736161844014,-3289.94,0.00010821,2]
[347856769,1736161844023,-1459.67,0.00010821,2]
[347856770,1736161844032,-1938.25,0.00010821,2]
[347856771,1736161844042,-1205.38,0.00010821,2]
[347856772,1736161844051,-826.28,0.00010821,2]
[347856773,1736161844060,-500.0,0.00010821,2]
[347856774,1736161844070,-1407.37,0.00010821,2]
[347856775,1736161844080,-2556.64,0.00010821,2]
[347856776,1736161844090,-1439.78,0.00010821,2]
[347856777,1736161844103,-945.88,0.00010821,2]
[347856778,1736161844112,-580.77,0.00010821,2]
[347856779,1736161844121,-519.16,0.00010821,2]
[347856780,1736161844131,-900.12,0.00010821,2]
[347856781,1736161844141,-500.0,0.00010821,2]
[347856782,1736161844150,-507.95,0.00010821,2]
[347856783,1736161844160,-500.0,0.00010821,2]
[347856784,1736161844170,-581.0,0.00010821,2]
[347856785,1736161844179,-1691.43,0.00010821,2]
[347856786,1736161844188,-1422.97,0.00010821,2]
[347856787,1736161844197,-2253.76,0.00010821,2]
[347856788,1736161844206,-6508.95,0.00010821,2]
[347856789,1736161844217,-500.0,0.00010821,2]
[347856790,1736161844226,-2882.91,0.00010821,2]
[347856791,1736161844235,-500.0,0.00010821,2]
[347856792,1736161844244,-500.0,0.00010821,2]
[347856793,1736161844253,-500.0,0.00010821,2]
[347856794,1736161844263,-500.0,0.00010821,2]
[347856795,1736161844272,-958.68,0.00010821,2]
[347856796,1736161844281,-680472.2265458,0.00010835,2]
[347856797,1736161844290,-2857.11341091,0.00010879,2]
[347856798,1736161844300,-4518.15488091,0.0001089,2]
[347856799,1736161844310,-1013.0843,0.000109,2]
[347856800,1736161844319,-253.38723423,0.000109,2]
[347856801,1736161844328,-4049.43168082,0.000109,2]
[347856802,1736161844337,-4049.43168082,0.000109,2]
[347856803,1736161844347,-4049.43168082,0.000109,2]
[347856804,1736161844355,-4049.43168082,0.000109,2]
[347856805,1736161844363,-4049.43168082,0.000109,2]
[347856806,1736161844372,-4049.43168082,0.000109,2]
[347856807,1736161844382,-4049.43168082,0.000109,2]
[347856808,1736161844391,-4049.43168082,0.000109,2]
[347856809,1736161844400,-4049.43168082,0.000109,2]
[347856810,1736161844409,-4049.43168082,0.000109,2]
[347856811,1736161844418,-4049.43168082,0.000109,2]
[347856812,1736161844427,-4049.43168082,0.000109,2]
[347856813,1736161844437,-168.03580316,0.000109,2]
[347856814,1736161844446,-1380.46,0.00010945,2]
[347856815,1736161844455,-1519.02,0.00010945,2]
[347856816,1736161844464,-815.05,0.00010945,2]
[347856817,1736161844474,-500.0,0.00010945,2]
[347856818,1736161844483,-1549.87,0.00010945,2]
[347856819,1736161844492,-500.0,0.00010945,2]
[347856820,1736161844502,-500.0,0.00010945,2]
[347856821,1736161844511,-500.0,0.00010945,2]
[347856822,1736161844521,-813.75,0.00010945,2]
[347856823,1736161844531,-500.0,0.00010945,2]
[347856824,1736161844540,-836.23,0.00010945,2]
[347856825,1736161844549,-500.0,0.00010945,2]
[347856826,1736161844558,-377.957,0.00010946,2]
[347856827,1736161844568,-7815.074,0.00010946,2]
[347856828,1736161844578,-1829.7327639,0.00010949,2]
[347856829,1736161844588,-500.0,0.00010959,2]
[347856830,1736161844598,-2000.0,0.00010959,2]
[347856831,1736161844607,-500.0,0.00010959,2]
[347856832,1736161844616,-200.0,0.00010959,2]
[347856833,1736161844627,-156.78541352,0.00010973,2]
[347856834,1736161844636,-151.7922475,0.00010973,2]
[347856835,1736161844646,-151.79224632,0.00010973,2]
[347856836,1736161844656,-152.79245062,0.00010973,2]
[347856837,1736161844665,-151.79027839,0.00010973,2]
[347856838,1736161844675,-150.7936131,0.00010973,2]
[347856839,1736161844684,-151.7922475,0.00010973,2]
[347856840,1736161844695,-151.79224632,0.00010973,2]
[347856841,1736161844704,-500.0,0.00010973,2]
[347856842,1736161844714,-500.0,0.00010973,2]
[347856843,1736161844723,-151.7922475,0.00010973,2]
[347856844,1736161844900,-151.79380715,0.00010973,2]